Cogmind - Beta 15 @@@ ROGUE MODE // 2025.06.09 @ 23:42:18 Player: 7604 Result: Destroyed by AO-F4E(R) with Subdweller Beam Cannon Performance ------------- Evolutions (0) 0 Regions Visited (2) 400 Robots Destroyed (25) 125 Value Destroyed (510) 510 Prototype IDs (5) 100 Alien Tech Used (0) 0 Bonus (-20) -20 TOTAL SCORE: 1115 Bonus ------- Friendly Fire -20 Cogmind --------- Core Integrity 0/250 Matter 280/300 Energy 28/100 System Corruption 4% Temperature Cool (9) Movement Treading (240) Ox1 Location -10/Subcaves Parts ------- > --- POWER (1) -------- (None) > --- PROPULSION (2) --- Light Treads > --- UTILITY (2) ------ Large Storage Unit Seismic Detector (fused) > --- WEAPON (2) ------- Subdweller Beam Cannon Subdweller Machine Gun > --- INVENTORY (15) --- Light Treads Wheel Compact Wheel Subdweller Monowheel Structural Scanner Seismic Detector EM Pulse Gun Medium Laser Beam Cannon Beam Cannon Beam Cannon Grenade Launcher Subdweller Shrapnel Launcher Mining Laser Peak State ------------ > --- POWER ------------ Ion Engine > --- PROPULSION ------- Light Treads Light Treads > --- UTILITY ---------- Large Storage Unit Seismic Detector > --- WEAPON ----------- Light Cannon Light Cannon > --- INVENTORY -------- Light Treads Light Treads Wheel Compact Wheel EM Pulse Gun EM Pulse Gun Medium Laser Small Laser Assault Rifle Grenade Launcher [Rating: 8] Favorites ----------- Power Ion Engine Engine Ion Engine Propulsion Light Treads Treads Light Treads Leg Aluminum Leg Utility Seismic Detector Device Seismic Detector Storage Large Storage Unit Weapon Light Cannon Energy Gun EM Pulse Gun Energy Cannon Beam Cannon Ballistic Gun Assault Rifle Ballistic Cannon Light Cannon Special Weapon Mining Laser Build | -11 -10 -10 ------- Run | Yrd Mat Sub Slots Evolved . | . . . Power . | . . . Propulsion . | . . . Utility . | . . . Weapon . | . . . Parts Attached 17 | 1 10 6 Power 2 | . 2 . Engine 2 | . 2 . Core . | . . . Reactor . | . . . Propulsion 3 | . 2 1 Treads 3 | . 2 1 Leg . | . . . Wheel . | . . . Hover . | . . . Flight . | . . . Utility 2 | 1 1 . Device 1 | 1 . . Storage 1 | . 1 . Processor . | . . . Hackware . | . . . Protection . | . . . Artifact . | . . . Weapon 10 | . 5 5 Energy Gun 2 | . 2 . Energy Cannon 3 | . . 3 Ballistic Gun 2 | . 1 1 Ballistic Cannon 2 | . 2 . Launcher . | . . . Special Weapon 1 | . . 1 Impact Weapon . | . . . Slashing Weapon . | . . . Piercing Weapon . | . . . Special Melee Weapon . | . . . Unidentified Prototypes . | . . . Parts Lost 7 | . 1 6 Power 2 | . 1 1 Propulsion 2 | . . 2 Utility . | . . . Weapon 3 | . . 3 Highest Loss Streak 4 | . 1 4 To Critical Strikes . | . . . Average Backups 11 | 6 10 14 Power . | 1 . . Propulsion 3 | 4 3 3 Utility . | . . 2 Weapon 6 | 1 6 8 Tool/Special . | . . . Unused Backups 20 | 6 3 11 Power 1 | 1 . . Propulsion 8 | 2 2 4 Utility 5 | 1 1 3 Weapon 6 | 2 . 4 Tool/Special . | . . . Average Slot Usage (%) 96 | . 99 89 Engine 11 | . 13 4 Treads 24 | . 23 27 Leg 2 | . 4 . Device 14 | . 14 14 Storage 14 | . 14 14 Energy Gun 3 | . 3 4 Energy Cannon 1 | . . 3 Ballistic Gun 3 | . 1 7 Ballistic Cannon 16 | . 22 2 Special Weapon 2 | . . 9 Peak Build Rating 8 | 7 8 8 Average Rating 7 | 6 7 7 On Entrance 7 | 6 7 8 Naked Turns . | . . . Heaviest Build 32 | 15 32 32 Greatest Support 40 | 20 40 40 Greatest Overweight (x) 1 | . 1 1 Average Overweight (x) . | . . . Largest Inventory Capacity 15 | 8 15 15 Average Capacity 12 | 8 11 15 Most Carried 15 | 6 15 15 Average Carried 11 | 6 10 14 Final Capacity 15 | 8 15 15 Final Carried 15 | 6 15 14 Class Distribution -------------------- 100% | Mutant Dominant Class ---------------- Mutant | -10/Materials Mutant | -10/Subcaves Resources | -11 -10 -10 ----------- Run | Yrd Mat Sub Matter Collected 875 | 210 508 157 Remotely . | . . . Salvage Created 630 | 20 442 168 Parts 50 | 3 37 10 Haulers Intercepted 2 | . 2 . Recyclers Shooed 2 | 1 1 . Parts Field Recycled . | . . . Retrieved Matter . | . . . Parts Self-Destructed . | . . . Prevented . | . . . Kills | -11 -10 -10 ------- Run | Yrd Mat Sub Combat Hostiles Destroyed 19 | . 16 3 Guns 6 | . 4 2 Cannons 12 | . 11 1 AOE 1 | . 1 . Classes Destroyed 7 | 1 5 1 Tunneler 2 | 1 1 . Hauler 2 | . 2 . Watcher 2 | . 2 . Swarmer 9 | . 9 . Grunt 5 | . 5 . Artisan 1 | . . 1 Subdweller 5 | . 2 3 Best Kill Streak 3 | 1 3 2 Combat Bots Only 3 | . 3 2 Max Kills in Single Turn 2 | 1 2 1 Gunslinging . | . . . Exploded 1 | . 1 . Melee . | . . . Uniques/NPCs Destroyed . | . . . Combat | -11 -10 -10 -------- Run | Yrd Mat Sub Hostile Shots Fired 115 | . 72 43 Missed 26 | . 14 12 Hits 89 | . 58 31 Projectile 89 | . 58 31 AOE 5 | . . 5 Critical Strikes 1 | . 1 . Damage Taken 1544 | . 669 875 Core 273 | . 97 176 Absorbed by Shields . | . . . Regen/Repaired (Parts) 208 | . 208 . Core Remaining (%) 100 | 100 . . Volleys Fired 110 | 2 51 57 Largest 2 | 2 2 2 Hottest 120 | 90 90 120 Shots Fired 176 | 3 100 73 Gun 54 | 3 22 29 Cannon 103 | . 78 25 Launcher . | . . . Special 19 | . . 19 Kinetic 101 | . 81 20 Thermal 45 | 2 5 38 Explosive . | . . . Electromagnetic 30 | 1 14 15 Robot Hit Streak 15 | 2 15 10 Robot Miss Streak 4 | . 4 4 Penetration Max . | . . . Secondary Targets 1 | . 1 . Max Gunslinging Chain 1 | . 1 . Shots Hit Robots 98 | 2 61 35 Core Hits 36 | 1 27 8 Critical Kills . | . . . Critical Parts Destroyed . | . . . Critical Strikes 4 | . 3 1 Destroy 1 | . . 1 Blast 3 | . 3 . Melee Attacks . | . . . Impact . | . . . Slashing . | . . . Piercing . | . . . Sneak Attacks . | . . . Combat Hostiles . | . . . Follow-up Attacks . | . . . Damage Inflicted 1688 | 24 1070 594 Guns 486 | 24 161 301 Cannons 1140 | . 875 265 Explosions 56 | . 28 28 Melee . | . . . Ramming 6 | . 6 . Kinetic 1062 | . 896 166 Thermal 383 | 24 66 293 Explosive . | . . . Electromagnetic 237 | . 102 135 Impact . | . . . Slashing . | . . . Piercing . | . . . Highest Corruption 4 | . 4 4 Average Corruption 3 | . 3 4 Corruption Purged . | . . . Corruption Blocked . | . . . Effects 44 | . 26 18 Message Errors 10 | . 5 5 Matter Fused 8 | . 6 2 Heat Flow Errors 4 | . 1 3 Energy Discharges 8 | . 4 4 Parts Fused 1 | . 1 . Data Loss (minor) 6 | . 3 3 Data Loss (major) 3 | . 3 . Misfires 1 | . . 1 Alerts 2 | . 2 . Weapon Failures 1 | . 1 . Overload Shots . | . . . Overflow Damage 8 | . 5 3 Projectiles 5 | . 5 . Explosions 3 | . . 3 Melee . | . . . Knockbacks 5 | . 5 . Impact . | . . . Kinetic 5 | . 5 . Secondary . | . . . Self-Inflicted Damage . | . . . Shots . | . . . Rammed 2 | . 2 . Targets Rammed 3 | . 3 . Kicked 1 | . 1 . Crushed . | . . . Highest Temperature 226 | 40 114 226 Average Temperature 35 | 22 26 78 Received Heat Transfer 285 | . 150 135 Siege Activations . | . . . Martial Activations . | . . . Shielding Activations . | . . . Robots Disrupted . | . . . Combat Hostiles . | . . . Robots Corrupted . | . . . Combat Hostiles . | . . . Parts Fried . | . . . Impact Corruptions . | . . . Robots Melted . | . . . Combat Hostiles . | . . . Parts Melted . | . . . Heat Transferred 729 | 74 87 568 Parts Sabotaged . | . . . Parts Stolen . | . . . Parts Stripped . | . . . Power Chain Reactions 2 | . 1 1 Alert | -11 -10 -10 ------- Run | Yrd Mat Sub Maximum Alert Level . | . . . Low Security (%) 100 | 100 100 . Level 1 . | . . . Level 2 . | . . . Level 3 . | . . . Level 4 . | . . . Level 5 . | . . . High Security . | . . . Max Security . | . . . Peak Influence 117 | 5 117 . Initial . | . . . Average 32 | 4 32 . Influence Increases 525 | 5 520 . Destroy 0b10 Robot/C 280 | . 280 . Destroy 0b10 Robot/NC 30 | 5 25 . Destroy Leader 58 | . 58 . Successful Hack 32 | . 32 . Select Force Hacks 60 | . 60 . Destroy Structure 5 | . 5 . Lose Combat Pursuer 60 | . 60 . Influence Decreases 525 | 5 513 7 Entered New Map 4 | . . 4 Time Decay 511 | 5 503 3 Lost Part 10 | . 10 . Squads Dispatched 3 | . 3 . Investigation 2 | . 2 . Extermination . | . . . Reinforcement 1 | . 1 . Assault . | . . . Garrison . | . . . Intercept . | . . . Searches Triggered . | . . . Construction Impeded . | . . . Haulers Reinforced . | . . . Active Scanning Responses . | . . . Cargo Convoy Interrupts . | . . . Stealth | -11 -10 -10 --------- Run | Yrd Mat Sub Distress Signals 1 | . 1 . Communications Jammed . | . . . Distress Signals . | . . . Times Spotted 37 | . 33 4 Peak Tracking Total 7 | . 7 2 Tactical Retreats 3 | . 3 . Traps | -11 -10 -10 ------- Run | Yrd Mat Sub Traps Triggered 4 | . 4 . Indirectly . | . . . Trap Hack Attempts . | . . . Triggered . | . . . Disarmed . | . . . Reprogrammed . | . . . Reused . | . . . Traps Extracted . | . . . Installed . | . . . Triggered . | . . . Machines | -11 -10 -10 ---------- Run | Yrd Mat Sub Machines Disabled . | . . . Max in Single Turn . | . . . Machines Repaired . | . . . Machines Dismantled . | . . . Machines Sabotaged . | . . . Overloaded Fab Kills . | . . . Hacking | -11 -10 -10 --------- Run | Yrd Mat Sub Machines Accessed 10 | . 10 . Terminals 7 | . 7 . Fabricators . | . . . Repair Stations 1 | . 1 . Recycling Units 2 | . 2 . Scanalyzers . | . . . Garrison Access . | . . . Total Hacks 49 | . 49 . Successful 28 | . 28 . Failed 21 | . 21 . Catastrophic 2 | . 2 . Database Lockouts . | . . . Manual 28 | . 28 . Terminals 40 | . 40 . Fabricators . | . . . Repair Stations 4 | . 4 . Recycling Units 5 | . 5 . Scanalyzers . | . . . Garrison Access . | . . . Terminal Hacks 10 | . 10 . Robot Schematic 1 | . 1 . Robot Analysis 2 | . 2 . Prototype ID Bank 4 | . 4 . Locate Traps 2 | . 2 . Zone Layout 1 | . 1 . Fabricator Hacks . | . . . Repair Station Hacks 4 | . 4 . Scan Component 2 | . 2 . Repair 2 | . 2 . Recycling Unit Hacks 2 | . 2 . Retrieve Components 2 | . 2 . Scanalyzer . | . . . Garrison Access Hacks . | . . . Unauthorized Hacks 12 | . 12 . Terminals 10 | . 10 . Assimilate 1 | . 1 . Botnet 2 | . 2 . Operators 1 | . 1 . Skim 6 | . 6 . Fabricators . | . . . Repair Stations . | . . . Recycling Units 2 | . 2 . Tunnel 2 | . 2 . Scanalyzers . | . . . Garrison Access . | . . . Data Cores Recovered . | . . . Used . | . . . Hacking Detections 8 | . 8 . Full Trace Events 1 | . 1 . Feedback Events . | . . . Feedback Blocked . | . . . Robot Schematics Acquired 1 | . 1 . Robots Built . | . . . Authchips . | . . . Time . | . . . Total Robot Build Rating . | . . . Part Schematics Acquired . | . . . Parts Built . | . . . Authchips . | . . . Time . | . . . Total Part Build Rating . | . . . Parts Repaired 2 | . 2 . Time 52 | . 52 . Parts Recycled . | . . . Recycled Matter . | . . . Retrieved Matter . | . . . Retrieved Components 11 | . 11 . Parts Scanalyzed . | . . . Part Schematics Acquired . | . . . Parts Damaged . | . . . Bothacking | -11 -10 -10 ------------ Run | Yrd Mat Sub Used RIF Installer . | . . . Robots Hacked . | . . . Non-combat . | . . . Combat . | . . . Robot Hacks Applied . | . . . Relay Couplers Released . | . . . Fabnet Peak Effective % . | . . . Robots Rewired . | . . . Allies Hacked . | . . . Hacks Repelled . | . . . Allies | -11 -10 -10 -------- Run | Yrd Mat Sub Total Allies . | . . . Largest Group . | . . . Highest-Rated Group . | . . . Highest-Rated Ally . | . . . Total Orders . | . . . Ally Attacks . | . . . Total Damage . | . . . Kills . | . . . Allies Corrupted . | . . . Allies Melted . | . . . Intel | -11 -10 -10 ------- Run | Yrd Mat Sub Active Infowar (turns) 2850 | 11 2002 837 Seismic 2850 | 11 2002 837 Robot Analysis Total 2 | . 2 . Derelict Logs Recovered . | . . . Drone Launches . | . . . Drone Recoveries . | . . . Exploration | -11 -10 -10 ------------- Run | Yrd Mat Sub Turns Passed 2860 | 21 2002 837 Spaces Moved 1413 | 13 1044 356 Core . | . . . Treads 1206 | . 850 356 Legs 207 | 13 194 . Wheels . | . . . Hover . | . . . Flight . | . . . Fastest Speed 120 | 120 120 160 Average Speed 155 | 120 154 160 Slowest Speed 240 | 120 240 240 Overloaded Moves . | . . . Propulsion Burnouts . | . . . Robots Hopped . | . . . Potential Cave-ins . | . . . Cave-ins Triggered . | . . . Exploration Rate (%) 40 | 3 98 21 Regions Visited 2 Branch Regions 1 Pre-discovered Areas 3 | . 3 . Known Exits Taken . | . . . Unknown Exits Taken 2 | 1 1 . Scrap Searched . | . . . Spaces Dug . | . . . Terrain Destroyed 6 | . 2 4 Melee . | . . . Projectile 1 | . . 1 AOE 5 | . 2 3 Terrain Rammed . | . . . Walls Destroyed . | . . . Machines Disabled . | . . . Actions | -11 -10 -10 --------- Run | Yrd Mat Sub Total 1856 | 15 1331 510 Wait 277 | . 200 77 Move 1411 | 12 1043 356 Hop . | . . . Pick Up 17 | . 12 5 Fast Attach 8 | 1 7 . Attach 5 | . 1 4 Detach 2 | . 2 . Swap 16 | . 7 9 Drop 7 | . 5 2 Fire 110 | 2 51 57 Melee . | . . . Ram . | . . . Kick 1 | . 1 . Crush 2 | . 2 . Escape Stasis . | . . . Rewire . | . . . Trap . | . . . Miscellaneous . | . . . Route ------- -11/Scrapyard -10/Materials (discovered 5 exits: [*Mat x3] / [*Min] / [*Sub]) -10/Subcaves (discovered 2 exits: [*Mat x2]) History --------- Turn | Location | Event 7 | -11/Scrapyard | Discovered new exit (range 3) 22 | -11/Scrapyard | Entered Materials 177 | -10/Materials | Discovered new exit (range 3) 327 | -10/Materials | Build established: Mutant 622 | -10/Materials | Derelicts attacked the area 815 | -10/Materials | Discovered new exit (range 15) 1069 | -10/Materials | Discovered new exit (range 9) 1170 | -10/Materials | Loaded intel: 44 machine locations 1217 | -10/Materials | Learned 4 Recycling zone layouts 1249 | -10/Materials | Repaired Lgt. Treads 1277 | -10/Materials | Repaired Lgt. Treads 1285 | -10/Materials | Learned Recycling recycling unit intel 1304 | -10/Materials | Learned Materials stockpile data 1374 | -10/Materials | Learned 2 Mines zone layouts 1437 | -10/Materials | Discovered new exit (range 6) 2014 | -10/Materials | Discovered new exit (range 7) 2024 | -10/Materials | Entered Subcaves 2025 | -10/Subcaves | Approached by a straggling Scientist 2041 | -10/Subcaves | Discovered new exit (range 12) 2297 | -10/Subcaves | Core integrity fell below 50% 2325 | -10/Subcaves | Core integrity fell below 20% 2353 | -10/Subcaves | Lost 4 parts (1p1n2w) 2436 | -10/Subcaves | Shifting Twisted Machinery released Sub. Shrapnel Launcher 2456 | -10/Subcaves | Shifting Twisted Machinery released Sub. Beam Cannon 2543 | -10/Subcaves | Discovered new exit (range 12) 2847 | -10/Subcaves | Ambushed by Subdweller buried in earth 2861 | -10/Subcaves | Destroyed by AO-F4E(R) with Subdweller Beam Cannon Last Messages --------------- 02575_ System corrupted: Matter fused (-6). 02593_ H0-7FT(u) tweaks Twisted Machinery. 02682_ B#>JBB35HU#B4LTTTDSDUUF4 > 02713_ System corrupted: Energy discharge (-23). 02754_ Subatomizers dissect the Beam Cannon. 02800_ S1HEK%AZINB Z=HNF2DUPQJS M&1PYC>OFQIWS 02805_ Destroyed Multitool. 02807_ H0-7FT(u) cries out in pain. 02807_ H0-7FT(u) destroyed. 02809_ Acquired 30 matter. 02820_ Subatomizers dissect the Sub. Optics. 02829_ Acquired 28 matter. 02831_ Subatomizers dissect the Sub. Optics. 02843_ Z0-UYV(R): "LEAVESUB!" 02848_ AO-F4E(R): "SLEEPOVER!" 02849_ Lgt. Treads destroyed. 02851_ Assault Rifle destroyed. 02854_ System corrupted: Component data lost. 02856_ Z0-UYV(R) destroyed. 02860_ AO-F4E(R) suffers critical hit (Destroy). Map ----- +----------------------------------------------------+ | ?????????????????????????????????????????????????? | | ?????????????????????????????????????????????????? | | ?????????????????????????????????????????????????? | | ?????????????????????????????????????????????????? | | ?????????????????????????????????????????????????? | | ###?####???###???????????????????????????????????? | | ### #### ###?????????????????????????????????? | | ## #?????????????????????????????????? | | #?????????????????????????????????? | | #?????????????????????????????????? | | ## #????????????????????????? ???????# | | ?## #### ##???????????????????????? ?????## | | ??###??### #???????????????? #????? #????## | | ###????### ##??????????????? #???? ????? " | | "" ##### #???????????????? ##?? ???????" | | "" ## " ##??????????????? ### ????????? | | "" ##" #??###??????????? # ##???????? | | ## #?## ##???????????# ###?????? | | ] ## #### ###??????????# #?????? | | < ###; ;;##???????## #????### | | #"""""" """""" ##;; ######### ###### # | | ##""##""""""""" #; ;;;## ## # | | ####?##"""""" =% ; # ## | | #?????##"""""" !=! R | | ##?????###""" *&= ## ## | | "##??????#"" ## @ ##### ### | | " ########" #; #???##### ##?# | | # # " #### #???????# #??? | | ! " "###### #???????# #??? | | " ""#??# ;; ####??????? #??? | | "# ## """" ## ##" ###?????????## ##??? | | ##" ###"""""""" ##??# #????????????#####???? | | ?####?###"" # ## ????##????????????????????? | | ????????################?????????????????????????? | | ?????????????????????????????????????????????????? | | ?????????????????????????????????????????????????? | | ?????????????????????????????????????????????????? | | ?????????????????????????????????????????????????? | | ?????????????????????????????????????????????????? | | ?????????????????????????????????????????????????? | | ?????????????????????????????????????????????????? | | ?????????????????????????????????????????????????? | | ?????????????????????????????????????????????????? | | ?????????????????????????????????????????????????? | | ?????????????????????????????????????????????????? | | ?????????????????????????????????????????????????? | | ?????????????????????????????????????????????????? | | ?????????????????????????????????????????????????? | | | | | +----------------------------------------------------+ Best States ------------- Heat Dissipation 25 Energy Generation 10 Energy Capacity 250 Matter Stores 300 Matter Capacity 300 Sight Range 16 Terrain Scan Density 10 Evasion (%) 55 Recoil Reduction 2 Item Schematics ----------------- None Robot Schematics ------------------ M-13 Machinist | -10/Materials | Hacked Fabricated ------------ Nothing Repaired ---------- Lgt. Treads | 17% | -10/Materials Lgt. Treads | 33% | -10/Materials Alien Tech Used ----------------- None Achievements -------------- None Challenges ------------ None Game ------ Seed ForceMultireflexMallet Manual? 0 Play Time 00:16:10 Cumulative 436.3 hours Start 2025.06.09 @ 23:27:08 End 2025.06.09 @ 23:42:18 Sessions 1 Manual Loads 0 Difficulty Rogue Special Mode None Game No. 221 Rogue 158 Adventurer 63 Explorer 0 Win Type - Total 9 Types 8/0/0/1/0/0/0/0/0/0 Lore% 87 Gallery% 79 Achievement% 66 Wizard Run 0 Options --------- Layout 0 ASCII 0 Keyboard 1 Movement Numpad Keybinds 0 Fullscreen 1 Font 18/Terminus Map View 76x50 Zoom Use 0% Tactical HUD 1 Map Filters NONE Filters NONE Steam 1 RUN: fc4254e1-8fe0-4166-af92-60045dce87c3